fUSD/lending_fUSD_20241101
["ID","MTS","AMOUNT","RATE_DAILY","PERIOD"]
[341123899,1730419295488,150.0,0.0002312,2]
[341123900,1730419335086,151.89,0.0002312,2]
[341123901,1730419518271,157.14,0.00015342,2]
[341123902,1730419625147,-250.0,0.00032,2]
[341123903,1730419625168,-97.46918862,0.00034378,2]
[341123904,1730419634134,-206.6065977,0.00034378,2]
[341123905,1730419639099,-121.25946368,0.00034378,2]
[341123906,1730419639119,-237.72735493,0.00041577,14]
[341123907,1730419745133,-187.60789507,0.00041577,14]
[341123908,1730419745153,-150.0,0.00041708,2]
[341123917,1730419831568,-177.07,0.00043421,120]
[341123918,1730419831578,-441.94,0.00043694,2]
[341123919,1730419831588,-195.68,0.00044494,2]
[341123920,1730419831598,-961.71180346,0.00045,2]
[341123921,1730419831607,-360.0,0.00045512,2]
[341123922,1730419831616,-157.47,0.00045524,120]
[341123923,1730419831625,-6671.33,0.00045524,2]
[341123924,1730419831634,-150.0,0.0004557,7]
[341123925,1730419831644,-409.4,0.00045579,2]
[341123926,1730419831653,-250.0,0.00045595,120]
[341123927,1730419831663,-640.0,0.00045682,2]
[341123928,1730419831672,-188.07,0.00045805,120]
[341123929,1730419831682,-179.85,0.00045857,2]
[341123930,1730419831691,-441.94,0.00045958,2]
[341123931,1730419831700,-178.68,0.00046323,76]
[341123932,1730419831710,-3722.24843227,0.0004653,2]
[341123933,1730419831719,-2443.22378772,0.000467,7]
[341123934,1730419831731,-5007.56001228,0.000467,7]
[341123935,1730419831740,-500.44503906,0.000468,3]
[341123936,1730419831750,-262.7751,0.000468,2]
[341123937,1730419831761,-2099.0537,0.000468,2]
[341123938,1730419831770,-1251.12378416,0.00046865,14]
[341123939,1730419831780,-300.0,0.00046865,4]
[341123940,1730419831790,-5459.295,0.00046882,2]
[341123941,1730419831799,-268.37,0.0004689,10]
[341123942,1730419831810,-459.55,0.0004689,10]
[341123943,1730419831820,-382.96,0.0004689,10]
[341123944,1730419831830,-162.53620465,0.00046899,120]
[341123945,1730419831839,-500.0,0.00046899,120]
[341123946,1730419831849,-17955.14,0.000469,2]
[341123947,1730419831860,-397.0,0.000469,34]
[341123948,1730419831870,-10189.6275,0.000469,2]
[341123949,1730419831880,-1943.0531,0.000469,2]
[341123950,1730419831890,-22482.3498,0.000469,2]
[341123951,1730419831899,-1000.0,0.000469,2]
[341123952,1730419831909,-150.0,0.000469,107]
[341123953,1730419831919,-150.0,0.000469,54]
[341123954,1730419831928,-255.11161432,0.000469,28]
[341123955,1730419831938,-11515.23445085,0.000469,2]
[341123956,1730419831947,-363.33969675,0.000469,2]
[341123957,1730419831956,-235.76,0.00046917,2]
[341123958,1730419831966,-1500.0,0.00046971,14]
[341123959,1730419831975,-628.18041441,0.00046982,2]
[341123960,1730419831985,-225709.63599325,0.00047,60]
[341123961,1730419832021,-200.0,0.00045512,2]
[341123962,1730419832031,-228.45648914,0.00047,60]
[341123963,1730419832044,-377.06182123,0.00047,60]
[341123964,1730419832148,-38.60768767,0.00047,60]
[341123974,1730419837602,-8082.499,0.00047,60]
[341123977,1730419837657,-2212.5,0.00047,60]
[341123978,1730419837765,-12002.68224278,0.00047,60]
[341123979,1730419837776,-783.5840292,0.00047,60]
[341123980,1730419837787,-1301.15361802,0.00047,60]
[341123981,1730419837798,-749.86877271,0.00047,60]
[341123982,1730419837809,-6329.97878758,0.00047,60]
[341123985,1730419838055,-928.41391497,0.00047,60]
[341124014,1730419839768,-200.0,0.0004689,10]
[341124016,1730419839778,-54.72074996,0.00046982,2]
[341124018,1730419839790,-259.36945725,0.00046982,2]
[341124020,1730419839799,-1564.54512497,0.00047,60]
[341124022,1730419839810,-591.05000001,0.00047,60]
[341124035,1730419839925,-1621.48412186,0.00047,60]
[341124040,1730419843069,-319.13,0.0004699,10]
[341124041,1730419843079,-408.91000004,0.00047,60]
[341124042,1730419843090,-7602.4486395,0.00047,60]
[341124043,1730419843123,-20822.61703523,0.00047,60]
[341124044,1730419843135,-2060.54596715,0.00047,60]
[341124045,1730419843147,-1112.42161098,0.00047,60]
[341124046,1730419843158,-5450.17478438,0.00047,60]
[341124047,1730419843178,-486.1439119,0.00047,60]
[341124048,1730419843189,-362.01550424,0.00047,60]
[341124049,1730419843232,-335.88393978,0.00047,60]
[341124050,1730419843244,-8073.5,0.00047,60]
[341124051,1730419843289,-1201.1368108,0.00047,60]
[341124122,1730419845491,550.0,0.00015,2]
[341124144,1730419985711,4988.45178167,0.0001726,2]
[341124145,1730420029558,157.29,0.00015342,2]
[341124146,1730420393738,6441.0,0.00024,119]
[341124147,1730420527889,165.17,0.00015342,2]
[341124148,1730420708354,985932.51894327,0.00016,2]
[341124149,1730420708385,200000.0,0.00016,2]
[341124150,1730420708414,957548.02758981,0.00016,2]
[341124152,1730420799120,-2015.83504431,0.00027,120]
[341124153,1730420848105,-2581.38495569,0.00027,120]
[341124154,1730420848125,-66.74191716,0.00041929,2]
[341124155,1730420849268,-1289.16808284,0.00041929,2]
[341124156,1730420849287,-102.05687917,0.000428,60]
[341124157,1730420884896,1042451.97241019,0.00015,2]
[341124158,1730420884922,10000.0,0.00015,2]
[341124159,1730420884948,50000.0,0.00015,2]
[341124160,1730420884970,50000.0,0.00015,2]
[341124161,1730420884998,500.0,0.00015,2]
[341124162,1730420885022,6913.0,0.00015,2]
[341124163,1730420885045,3650030.74406419,0.00015,2]
[341124164,1730420946160,-811.9954836,0.000379,2]
[341124165,1730420946182,-27178.71717892,0.0004,4]
[341124166,1730420947104,-13934.56973235,0.0004,4]
[341124167,1730420947124,-150.0,0.00041476,2]
[341124175,1730421023308,157.22,0.00015342,2]
[341124193,1730421037805,-1620.00011,0.000428,60]
[341124194,1730421037957,-1729.06733478,0.000428,60]
[341124195,1730421037975,-2216.38758432,0.000428,60]
[341124196,1730421038081,-580.14879117,0.000428,60]
[341124197,1730421038142,-3593.88520939,0.000428,60]
[341124233,1730421039875,-704.37,0.000428,60]
[341124234,1730421039933,-2684.7601254,0.000428,60]
[341124235,1730421039950,-884.33399999,0.000428,60]
[341124236,1730421039965,-338.0987451,0.000428,60]
[341124247,1730421042694,-445.6388972,0.000428,60]
[341124248,1730421043021,-223.98167153,0.000428,60]
[341124286,1730421045854,-5082.29999974,0.000428,60]
[341124292,1730421121293,16837.40794867,0.0004151,2]
[341124293,1730421163852,150.0,0.00017605,2]
[341124294,1730421205625,150.0,0.00017605,2]
[341124295,1730421242488,300.0,0.00019725,2]
[341124296,1730421519748,4485.34729744,0.00044823,120]
[341124297,1730421647751,550.0,0.00015,2]
[341124298,1730421648460,157.07,0.00015342,2]
[341124299,1730421648841,600.0,0.00017,2]
[341124300,1730421649917,650.0,0.00019,2]
[341124301,1730421878383,150.0,0.000205,3]
[341124302,1730421931145,-469.71068527,0.000286,2]
[341124303,1730422040133,-149.28931473,0.000286,2]
[341124304,1730422040152,-308.157,0.0003,2]
[341124305,1730422040172,-308.157,0.00036754,2]
[341124306,1730422040191,-485.046082,0.00039473,2]
[341124307,1730422040211,-157.07,0.00039671,2]
[341124308,1730422040229,-283.9208,0.00039888,7]
[341124309,1730422040249,-419.36,0.00039928,2]
[341124310,1730422040268,-257.94,0.00040688,2]
[341124311,1730422040290,-151.1,0.00040853,2]
[341124312,1730422040308,-1427.44442016,0.0004102,2]
[341124313,1730422046094,-653.23762674,0.0004102,2]
[341124314,1730422148121,-2919.31,0.0004115,2]
[341124315,1730422148149,-150.0,0.00041208,2]
[341124316,1730422148169,-150.0,0.00041282,2]
[341124317,1730422148189,-279.47,0.00041291,2]
[341124318,1730422148209,-150.0,0.00041291,7]
[341124319,1730422148229,-809.25,0.00041344,120]
[341124320,1730422148249,-2325.4,0.00041356,2]
[341124321,1730422148275,-169.1,0.00041356,2]
[341124322,1730422148295,-500.0,0.00041408,2]
[341124323,1730422148317,-357.10513701,0.00041411,2]
[341124324,1730422148338,-1585.01,0.00041474,2]
[341124325,1730422148359,-250.0,0.00041476,120]
[341124326,1730422148378,-257.75,0.00041488,2]
[341124327,1730422148399,-250.0,0.00041494,2]
[341124328,1730422148419,-11364.06,0.00041515,2]
[341124329,1730422148438,-10334.78063365,0.0004175,2]
[341124330,1730422148459,-180.67,0.00041755,120]
[341124331,1730422148479,-1026.63802195,0.00041759,3]
[341124332,1730422148499,-7538.78920739,0.0004176,2]
[341124333,1730422151157,-6903.59836425,0.0004176,2]
[341124334,1730422160088,-9457.61242836,0.0004176,2]
[341124335,1730422160108,-3367.71,0.00041772,2]
[341124336,1730422160130,-150.99,0.00041772,2]
[341124337,1730422160150,-592.81,0.00041772,2]
[341124338,1730422160168,-1861.25,0.00041772,30]
[341124339,1730422160190,-999.99,0.00041772,2]
[341124340,1730422160213,-151.1,0.00041772,2]
[341124341,1730422160233,-179.85,0.00041819,2]
[341124342,1730422160256,-200.86501525,0.0004182,2]
[341124343,1730422161121,-87.13498475,0.0004182,2]
[341124344,1730422161141,-170.091,0.0004182,2]
[341124345,1730422161161,-170.091,0.0004182,2]
[341124346,1730422161180,-170.091,0.0004182,2]
[341124347,1730422161199,-170.091,0.0004182,2]
[341124348,1730422161218,-170.091,0.0004182,2]
[341124349,1730422161237,-357.10513702,0.00041822,2]
[341124350,1730422161256,-1960.63,0.00041841,2]
[341124351,1730422161274,-200.0,0.00041865,2]
[341124352,1730422161293,-150.0,0.00041975,2]
[341124353,1730422161313,-225.027,0.00041975,63]
[341124354,1730422161332,-155.0,0.00042,60]
[341124355,1730422161354,-891.26,0.00042136,120]
[341124356,1730422161372,-350.24,0.00042136,2]
[341124357,1730422161394,-419.36,0.00042192,2]
[341124358,1730422161413,-10836.58,0.00042194,2]
[341124359,1730422161432,-257.94,0.00042294,120]
[341124360,1730422181547,156.77,0.00015342,2]
[341124361,1730422184873,150.0,0.00041176,2]
[341124362,1730422193360,150.0,0.00041247,2]
[341124364,1730422196710,150.0,0.0004122,2]
[341124368,1730422231979,-151.1,0.00042691,2]
[341124369,1730422231991,-622.29153876,0.000428,60]
[341124370,1730422232005,-1531.29710236,0.000428,60]
[341124371,1730422232141,-1200.0,0.000428,60]
[341124372,1730422232157,-51774.72821066,0.000428,60]
[341124373,1730422232166,-155.0,0.000428,120]
[341124374,1730422232175,-1383.50119887,0.000429,15]
[341124375,1730422232184,-38544.92826434,0.00043,10]
[341124376,1730422232195,-692.04,0.00043,2]
[341124377,1730422232204,-207.101657,0.00043,14]
[341124378,1730422232213,-151.0,0.00043,14]
[341124379,1730422232222,-151.0,0.00043,14]
[341124380,1730422232231,-151.0,0.00043,14]
[341124381,1730422232240,-151.0,0.00043,14]
[341124382,1730422232249,-499.99,0.00043,2]
[341124383,1730422232258,-207.17,0.00043207,2]
[341124384,1730422232267,-330.88,0.0004347,2]
[341124385,1730422232279,-151.1,0.0004361,2]
[341124386,1730422232289,-153.0,0.00043822,31]
[341124387,1730422232299,-153.0,0.00043822,31]
[341124388,1730422232308,-161.4539103,0.00043875,10]
[341124389,1730422232319,-257.94,0.000439,120]
[341124390,1730422232330,-152.0,0.00043914,3]
[341124391,1730422232340,-228.32,0.0004398,10]
[341124392,1730422232349,-394.54,0.0004399,10]
[341124393,1730422232360,-328.79,0.0004399,10]
[341124394,1730422232371,-273.99,0.0004399,10]
[341124395,1730422232381,-1605.08452994,0.00044,2]
[341124396,1730422232393,-1002.18030121,0.00044,2]
[341124400,1730422232520,-6631.50481508,0.00044,2]
[341124402,1730422232533,-10761.23035377,0.00044,2]
[341124404,1730422232544,-157.47,0.00044178,120]
[341124406,1730422232554,-477.03,0.0004427,2]
[341124408,1730422232565,-712.0,0.00044362,2]
[341124410,1730422232574,-419.36,0.00044456,2]
[341124412,1730422232584,-284.157372,0.00044456,14]
[341124414,1730422232594,-151.0,0.00044456,14]
[341124417,1730422232609,-153.896177,0.00044456,14]
[341124418,1730422232619,-151.0,0.00044485,14]
[341124421,1730422232629,-165.085958,0.00044485,14]
[341124422,1730422232638,-167.281357,0.00044485,14]
[341124424,1730422232647,-151.0,0.00044485,14]
[341124426,1730422232658,-57.09674594,0.00044485,14]
[341124429,1730422232673,-93.90325406,0.00044485,14]
[341124431,1730422232683,-544.612267,0.00044485,14]
[341124433,1730422232692,-151.0,0.00044485,14]
[341124435,1730422232701,-151.0,0.00044485,14]
[341124436,1730422232710,-157.267417,0.00044485,14]
[341124438,1730422232720,-160.217085,0.00044485,14]
[341124440,1730422232728,-158.085044,0.00044485,14]
[341124442,1730422232738,-151.0,0.00044485,14]
[341124444,1730422232746,-151.0,0.00044485,14]
[341124446,1730422232761,-151.0,0.00044485,14]
[341124448,1730422232772,-151.1,0.00044529,2]
[341124450,1730422232781,-207.17,0.00044577,2]
[341124452,1730422232792,-151.0,0.00044632,14]
[341124454,1730422232802,-151.0,0.00044632,14]
[341124455,1730422232812,-151.0,0.00044632,14]
[341124457,1730422232823,-221.540405,0.00044632,14]
[341124459,1730422232832,-1104.733804,0.00044632,14]
[341124461,1730422232842,-151.0,0.00044632,14]
[341124463,1730422232852,-1104.733804,0.00044632,14]
[341124466,1730422232862,-206.525675,0.00044632,14]
[341124468,1730422232872,-206.525675,0.00044632,14]
[341124469,1730422232881,-151.0,0.00044632,14]
[341124471,1730422232891,-153.895429,0.00044632,14]
[341124473,1730422232900,-3274.82471819,0.000447,2]
[341124475,1730422232911,-194.15599081,0.000447,2]
[341124477,1730422232920,-151.0,0.000447,14]
[341124479,1730422232929,-544.612267,0.000447,14]
[341124481,1730422232938,-151.0,0.000447,14]
[341124482,1730422232948,-151.0,0.000447,14]
[341124484,1730422232958,-151.0,0.000447,14]
[341124486,1730422232967,-152.459188,0.000447,14]
[341124488,1730422232976,-151.0,0.000447,14]
[341124490,1730422232985,-319.436828,0.000447,14]
[341124492,1730422232994,-319.436828,0.000447,14]
[341124494,1730422233002,-2095.960178,0.000447,14]
[341124496,1730422233012,-2095.960178,0.000447,14]
[341124498,1730422233021,-151.0,0.000447,14]
[341124500,1730422233030,-151.0,0.000447,14]
[341124502,1730422233039,-151.0,0.000447,7]
[341124504,1730422233048,-289.867894,0.000447,14]
[341124506,1730422233058,-289.867894,0.000447,14]
[341124508,1730422233069,-284.442039,0.000447,14]
[341124510,1730422233078,-284.442039,0.000447,14]
[341124511,1730422233087,-1383.5011988,0.00044733,15]
[341124514,1730422233208,-156.99,0.00044943,2]
[341124515,1730422233218,-3540.86747644,0.00045,10]
[341124518,1730422233229,-2044.7164564,0.00045,10]
[341124521,1730422233256,-2393.1788011,0.00045,10]
[341124606,1730422237919,-250.0,0.00043875,10]
[341124607,1730422237930,-846.99901798,0.00045,10]
[341124608,1730422237940,-308.157,0.00045255,14]
[341124609,1730422237951,-151.1,0.00045448,2]
[341124610,1730422237962,-257.94,0.00045506,120]
[341124611,1730422237972,-2285.0,0.00046,5]
[341124612,1730422237982,-1383.5011988,0.00046567,15]
[341124613,1730422237990,-419.36,0.00046719,2]
[341124614,1730422237999,-580.72,0.00046767,120]
[341124615,1730422238008,-3199.4286,0.000468,2]
[341124616,1730422238017,-399.0,0.000469,34]
[341124617,1730422238026,-150.0,0.000469,107]
[341124618,1730422238035,-2493.17508725,0.000469,2]
[341124619,1730422238046,-2689.78201,0.000469,2]
[341124620,1730422238077,-865.1330739,0.000469,2]
[341124621,1730422238087,-1892.27757239,0.000469,2]
[341124622,1730422238244,-229.26195762,0.000469,2]
[341124658,1730422239957,-200.0,0.00046567,15]
[341124659,1730422239967,-21511.50689884,0.000469,2]
[341124660,1730422239976,-269.849302,0.000469,14]
[341124661,1730422239986,-151.0,0.000469,14]
[341124662,1730422239995,-151.0,0.000469,14]
[341124663,1730422240005,-209.321616,0.000469,14]
[341124664,1730422240014,-209.321616,0.000469,14]
[341124665,1730422240023,-151.0,0.000469,14]
[341124666,1730422240032,-151.0,0.000469,14]
[341124667,1730422240041,-217.02885,0.000469,14]
[341124668,1730422240051,-217.02885,0.000469,14]
[341124669,1730422240061,-151.0,0.000469,14]
[341124670,1730422240072,-151.0,0.000469,14]
[341124671,1730422240081,-151.0,0.000469,14]
[341124672,1730422240090,-544.612267,0.000469,14]
[341124673,1730422240099,-151.0,0.000469,14]
[341124674,1730422240109,-151.0,0.000469,14]
[341124675,1730422240119,-151.0,0.000469,14]
[341124676,1730422240128,-151.0,0.000469,14]
[341124677,1730422240138,-150.0,0.000469,54]
[341124678,1730422240148,-151.0,0.000469,14]
[341124679,1730422240157,-1104.733804,0.000469,14]
[341124680,1730422240167,-151.0,0.000469,14]
[341124681,1730422240176,-1104.733804,0.000469,14]
[341124682,1730422240185,-206.525675,0.000469,14]
[341124683,1730422240195,-206.525675,0.000469,14]
[341124684,1730422240205,-151.0,0.000469,14]
[341124685,1730422240214,-151.0,0.000469,14]
[341124686,1730422240224,-319.436828,0.000469,14]
[341124687,1730422240236,-319.436828,0.000469,14]
[341124688,1730422240245,-2095.960178,0.000469,14]
[341124689,1730422240256,-2095.960178,0.000469,14]
[341124690,1730422240268,-151.0,0.000469,14]
[341124691,1730422240278,-168.448844,0.000469,14]
[341124692,1730422240288,-151.0,0.000469,7]
[341124693,1730422240299,-289.867894,0.000469,14]
[341124694,1730422240308,-289.867894,0.000469,14]
[341124695,1730422240319,-151.0,0.000469,14]
[341124696,1730422240330,-151.0,0.000469,14]
[341124697,1730422240339,-284.442039,0.000469,14]
[341124698,1730422240349,-284.442039,0.000469,14]
[341124699,1730422240359,-151.0,0.000469,14]
[341124700,1730422240370,-151.0,0.000469,14]
[341124701,1730422240381,-151.0,0.000469,14]
[341124702,1730422240390,-328.19649724,0.00046915,2]
[341124703,1730422240400,-161.75488736,0.00046973,10]
[341124704,1730422240412,-201.46891352,0.00046973,10]
[341124705,1730422240423,-157.0451036,0.00046982,2]
[341124706,1730422240433,-157.684531,0.00046983,14]
[341124707,1730422240444,-177.481268,0.00046983,7]
[341124708,1730422240457,-177.481268,0.00046983,7]
[341124709,1730422240466,-151.0,0.00046983,14]
[341124710,1730422240475,-328.19649724,0.00046993,2]
[341124711,1730422240484,-151.0,0.00046996,14]
[341124712,1730422240493,-151.0,0.00046996,14]
[341124713,1730422240503,-151.0,0.00046996,14]
[341124714,1730422240513,-217.02885,0.00046996,14]
[341124715,1730422240522,-217.02885,0.00046996,14]
[341124716,1730422240531,-14683.2623197,0.00046996,2]
[341124717,1730422240541,-3398.2548102,0.00046996,2]
[341124718,1730422240550,-4706.58907736,0.00047,60]
[341124719,1730422240560,-500.0,0.00047,120]
[341124720,1730422240571,-198.72682241,0.00047,30]
[341124721,1730422240581,-204.09123394,0.00047,30]
[341124722,1730422240590,-29583.11433988,0.00047,30]
[341124729,1730422242968,-200.0,0.00046973,10]
[341124730,1730422242978,-2951.36944735,0.00047,30]
[341124732,1730422243250,-150.0,0.00046983,14]
[341124734,1730422243259,-10334.1967669,0.00047,30]
[341124735,1730422243269,-3562.90751137,0.00047,30]
[341124736,1730422243278,-151.0,0.00047,14]
[341124737,1730422243291,-151.0,0.00047,14]
[341124739,1730422243300,-151.0,0.00047,14]
[341124740,1730422243309,-156.047259,0.00047,14]
[341124741,1730422243318,-2000.0,0.00047,7]
[341124742,1730422243327,-200.0,0.00047,7]
[341124743,1730422243336,-177.481268,0.00047,7]
[341124744,1730422243345,-177.481268,0.00047,7]
[341124745,1730422243354,-151.0,0.00047,14]
[341124746,1730422243363,-151.0,0.00047,14]
[341124747,1730422243371,-209.321616,0.00047,14]
[341124748,1730422243380,-209.321616,0.00047,14]
[341124749,1730422243390,-227.68829507,0.00047,7]
[341124750,1730422243400,-200.0,0.00047,7]
[341124751,1730422243411,-151.0,0.00047,14]
[341124752,1730422243423,-217.02885,0.00047,14]
[341124753,1730422243433,-217.02885,0.00047,14]
[341124754,1730422243443,-151.0,0.00047,14]
[341124755,1730422243453,-151.0,0.00047,14]
[341124756,1730422243462,-544.612267,0.00047,14]
[341124757,1730422243471,-151.0,0.00047,14]
[341124758,1730422243481,-151.0,0.00047,14]
[341124759,1730422243490,-151.0,0.00047,14]
[341124760,1730422243499,-151.0,0.00047,14]
[341124761,1730422243509,-151.0,0.00047,14]
[341124762,1730422243520,-1104.733804,0.00047,14]
[341124763,1730422243530,-151.0,0.00047,14]
[341124764,1730422243539,-1104.733804,0.00047,14]
[341124765,1730422243549,-206.525675,0.00047,14]
[341124766,1730422243559,-206.525675,0.00047,14]
[341124767,1730422243569,-151.0,0.00047,14]
[341124768,1730422243579,-1000.0,0.00047,30]
[341124769,1730422243589,-151.0,0.00047,14]
[341124770,1730422243599,-319.436828,0.00047,14]
[341124771,1730422243608,-319.436828,0.00047,14]
[341124772,1730422243617,-2095.960178,0.00047,14]
[341124773,1730422243626,-2095.960178,0.00047,14]
[341124774,1730422243636,-173.2,0.00047,14]
[341124775,1730422243646,-151.0,0.00047,7]
[341124776,1730422243655,-289.867894,0.00047,14]
[341124777,1730422243664,-289.867894,0.00047,14]
[341124778,1730422243673,-176.729525,0.00047,14]
[341124779,1730422243683,-284.442039,0.00047,14]
[341124780,1730422243692,-284.442039,0.00047,14]
[341124781,1730422243701,-207.449846,0.00047,14]
[341124782,1730422243711,-151.0,0.00047,14]
[341124783,1730422243720,-1272.6252082,0.00047015,2]
[341124784,1730422243730,-288.0,0.00047048,2]
[341124785,1730422243739,-190.27,0.00047092,10]
[341124786,1730422243750,-451.0,0.00047102,2]
[341124787,1730422243760,-3369.0,0.00047102,2]
[341124788,1730422243770,-2902.0,0.00047102,2]
[341124789,1730422243780,-812.0,0.00047102,2]
[341124790,1730422243789,-682.7743701,0.00047102,2]
[341124791,1730422245044,150.0,0.00041561,2]
[341124796,1730422246259,-157.0451036,0.00046982,2]
[341124797,1730422246269,-200.0,0.00047,60]
[341124798,1730422246278,-571.2256299,0.00047102,2]
[341124799,1730422246288,-151.0,0.00047102,14]
[341124800,1730422246297,-151.0,0.00047102,14]
[341124801,1730422246307,-151.0,0.00047102,14]
[341124802,1730422246316,-1104.733804,0.00047102,14]
[341124803,1730422246326,-151.0,0.00047102,14]
[341124804,1730422246335,-299.77537145,0.00047102,14]
[341124809,1730422250240,150.0,0.00041327,2]
[341124810,1730422257339,150.0,0.00041334,2]
[341124811,1730422306647,150.0,0.00041659,2]
[341124812,1730422310591,150.0,0.00041039,2]
[341124813,1730422316542,150.0,0.0004166,2]
[341124814,1730422349203,1228.62,0.0004117,2]
[341124815,1730422362591,150.0,0.00017605,2]
[341124816,1730422403991,150.0,0.00017605,2]
[341124817,1730422622583,300.0,0.00019725,2]
[341124818,1730422700370,157.35,0.00015342,2]
[341124819,1730423037885,21630.0,0.00015,2]
[341124820,1730423143147,-154.77,0.00024825,2]
[341124821,1730423143168,-203.83121105,0.000286,2]
[341124822,1730423250103,-33.16878895,0.000286,2]
[341124823,1730423250123,-356.67812751,0.00030092,2]
[341124824,1730423251137,-134.90160637,0.00030092,2]
[341124825,1730423251158,-150.0,0.00037013,2]
[341124826,1730423251179,-900.0,0.00037112,2]
[341124827,1730423251201,-9107.4319515,0.00037113,2]
[341124828,1730423251220,-500.0,0.00037113,2]
[341124829,1730423251240,-500.0,0.00037113,2]
[341124830,1730423251261,-500.0,0.00037113,2]
[341124831,1730423251281,-500.0,0.00037113,2]
[341124832,1730423251301,-500.0,0.00037113,2]
[341124833,1730423251321,-500.0,0.00037113,2]
[341124834,1730423251340,-500.0,0.00037113,2]
[341124835,1730423251360,-500.0,0.00037113,2]
[341124836,1730423251380,-500.0,0.00037113,2]
[341124837,1730423251399,-500.0,0.00037113,2]
[341124838,1730423251419,-500.0,0.00037113,2]
[341124839,1730423251443,-500.0,0.00037113,2]
[341124840,1730423251462,-500.0,0.00037113,2]
[341124841,1730423251482,-500.0,0.00037113,2]
[341124842,1730423251501,-500.0,0.00037113,2]
[341124843,1730423251522,-500.0,0.00037113,2]
[341124844,1730423251542,-500.0,0.00037113,2]
[341124845,1730423251560,-500.0,0.00037113,2]
[341124846,1730423251579,-500.0,0.00037113,2]
[341124847,1730423251598,-500.0,0.00037113,2]
[341124848,1730423251617,-500.0,0.00037113,2]
[341124849,1730423251636,-500.0,0.00037113,2]
[341124850,1730423251655,-500.0,0.00037113,2]
[341124851,1730423251675,-500.0,0.00037113,2]
[341124852,1730423251695,-500.0,0.00037113,2]
[341124853,1730423251714,-500.0,0.00037113,2]
[341124854,1730423251825,-487.35147276,0.00037113,2]
[341124855,1730423347075,-12.64852724,0.00037113,2]
[341124856,1730423347096,-500.0,0.00037113,2]
[341124857,1730423347116,-500.0,0.00037113,2]
[341124858,1730423347137,-500.0,0.00037113,2]
[341124859,1730423347157,-500.0,0.00037113,2]
[341124860,1730423347176,-500.0,0.00037113,2]
[341124861,1730423347196,-500.0,0.00037113,2]
[341124862,1730423347215,-500.0,0.00037113,2]
[341124863,1730423347235,-500.0,0.00037113,2]
[341124864,1730423347254,-500.0,0.00037113,2]
[341124865,1730423347273,-500.0,0.00037113,2]
[341124866,1730423347292,-500.0,0.00037113,2]
[341124867,1730423347311,-500.0,0.00037113,2]
[341124868,1730423347337,-500.0,0.00037113,2]
[341124869,1730423347356,-176.10923133,0.00037113,2]
[341124870,1730423347375,-308.6794,0.00039888,7]
[341124871,1730423347394,-1410.82,0.00041014,2]
[341124872,1730423347413,-564.30825,0.00041306,14]
[341124873,1730423347432,-187.08525,0.00041306,14]